bitfinex/quotes_ETHUSD_20250807
["timestamp","ask_amount","ask_price","bid_price","bid_amount"]
[1754561798407,0.24538068,3800.1,3800.0,2.63157894]
[1754561798618,0.002,3800.6,3800.5,2.63123273]
[1754561798970,0.1332,3801.4,3801.3,2.63067897]
[1754561799171,0.1332,3801.4,3801.1,2.63075236]
[1754561799397,0.002,3801.4,3800.4,1.4217]
[1754561799594,0.002,3801.4,3800.5,4.835]
[1754561799779,0.002,3801.4,3801.3,2.76187897]
[1754561802204,0.006,3801.8,3801.7,2.63040218]
[1754561802366,0.002,3801.9,3801.8,2.630333]
[1754561802572,0.24525535,3803.2,3802.7,2.62965971]
[1754561802771,0.71175535,3803.1,3801.8,1.7667]
[1754561802966,2.4115,3803.1,3801.8,1.4197]
[1754561803212,0.5033636,3803.6,3801.9,4.832]
[1754561803508,2.62938088,3803.2,3802.4,2.62985317]
[1754561803690,2.62930765,3803.3,3801.9,4.832]
[1754561803898,2.62953134,3803.0,3802.0,4.831]
[1754561804101,5.04087812,3803.2,3802.0,4.831]
[1754561804274,5.04087812,3803.2,3802.2,2.63000424]
[1754561804477,0.004,3803.6,3802.1,2.630116]
[1754561804679,0.004,3803.6,3802.3,0.347]
[1754561804993,0.004,3803.6,3803.2,2.62935141]
[1754561805197,0.004,3803.6,3803.5,2.62915735]
[1754561806010,0.004,3803.6,3803.3,2.62923881]
[1754561806212,0.004,3803.6,3803.4,2.62917128]
[1754561806418,0.004,3803.6,3802.7,0.347]
[1754561806577,0.004,3803.6,3802.8,4.83]
[1754561806778,0.004,3803.6,3803.5,2.62915735]
[1754561807095,4.14959003,3804.2,3804.1,2.62874267]
[1754561807884,4.14959003,3804.2,3804.0,2.62878534]
[1754561808216,4.14959003,3804.2,3804.0,1.4197]
[1754561808413,4.14959003,3804.2,3803.5,4.829]
[1754561808414,4.14959003,3804.2,3803.8,2.62892259]
[1754561808576,4.14959003,3804.2,3803.9,2.62886853]
[1754561808777,4.14959003,3804.2,3803.8,2.62893426]
[1754561809013,4.14959003,3804.2,3803.5,6.2487]
[1754561809172,4.14959003,3804.2,3803.6,2.62907591]
[1754561809374,4.14959003,3804.2,3803.7,4.828]
[1754561809677,4.14959003,3804.2,3803.9,2.62882993]
[1754561809882,4.14959003,3804.2,3803.8,4.4197]
[1754561810080,1.8423,3804.1,3803.9,4.827]
[1754561810286,2.2702,3804.1,3803.6,4.827]
[1754561810485,3.05670159,3804.1,3803.6,4.827]
[1754561810685,1.8423,3804.0,3803.6,4.827]
[1754561810880,4.14959003,3804.2,3803.6,4.827]
[1754561811115,4.47112965,3804.0,3803.7,4.826]
[1754561811334,2.62894999,3803.8,3803.5,4.826]
[1754561811529,2.62912378,3803.6,3803.1,4.826]
[1754561811682,4.47151015,3803.5,3803.1,4.826]
[1754561812029,2.62900917,3803.8,3803.1,4.826]
[1754561812179,4.14959003,3804.2,3803.4,2.76040594]
[1754561812380,4.14959003,3804.2,3803.8,0.1312]
[1754561813415,2.62881177,3804.0,3803.8,0.1312]
[1754561813794,2.62888088,3803.9,3803.8,0.1312]
[1754561813980,1.8423,3804.0,3803.8,0.1312]
[1754561814182,4.14959003,3804.2,3803.7,4.825]
[1754561814430,2.2702,3804.1,3802.8,0.20126927]
[1754561814626,2.4014,3804.1,3803.5,0.1312]
[1754561814808,2.62888454,3803.9,3803.5,0.1312]
[1754561815020,2.62888454,3803.9,3803.5,4.9552]
[1754561815327,1.8423,3803.9,3803.5,4.9552]
[1754561815736,2.62882788,3804.0,3803.5,4.824]
[1754561816032,2.62882788,3804.0,3803.3,2.6292816]
[1754561816033,2.62882428,3804.0,3803.8,0.1312]
[1754561816239,2.62894999,3803.8,3803.7,0.1312]
[1754561816544,2.62894999,3803.8,3801.5,4.05023484]
[1754561816545,2.62964131,3802.8,3802.7,0.1312]
[1754561816839,4.89984131,3802.8,3802.7,0.1312]
[1754561816998,2.2702,3802.8,3802.7,0.1312]
[1754561817204,4.89984131,3802.8,3802.1,2.6300582]
[1754561817432,2.2702,3802.8,3802.5,0.1312]
[1754561817737,1.8423,3802.7,3802.5,0.1312]
[1754561817941,4.89991942,3802.7,3802.0,7.45319275]
[1754561818139,4.89991942,3802.7,3802.4,0.1312]
[1754561818338,2.62980229,3802.6,3802.4,0.1312]
[1754561818642,2.62984878,3802.5,3802.4,0.1312]
[1754561818839,2.2702,3802.5,3802.2,0.1312]
[1754561819048,1.8423,3802.4,3802.2,0.1312]
[1754561819402,1.8423,3802.4,3802.2,2.7612555]
[1754561819607,14.5,3804.5,3802.4,2.62991794]
[1754561819810,0.002,3804.6,3802.6,0.1312]
[1754561819811,0.1312,3804.0,3802.6,0.1312]
[1754561820011,4.14959003,3804.2,3803.8,0.1312]
[1754561820205,0.4279,3804.1,3803.8,0.1312]
[1754561820411,2.62894999,3803.8,3802.8,0.1312]
[1754561820607,2.62984878,3802.5,3801.3,4.822]
[1754561820858,0.03287397,3802.4,3802.0,0.1312]
[1754561821163,0.1312,3802.6,3802.0,2.7613256]
[1754561821367,1.8423,3802.6,3802.3,0.1312]
[1754561821554,2.3030731,3802.5,3800.9,6.51626945]
[1754561821880,2.630333,3801.8,3801.7,0.1312]
[1754561822045,2.63020541,3802.0,3801.7,0.1312]
[1754561822378,0.5591,3802.3,3801.7,0.1312]
[1754561822553,1.8423,3802.4,3800.9,6.51626945]
[1754561822759,0.4279,3802.3,3800.9,6.51626945]
[1754561822961,1.8423,3802.2,3801.0,4.82]
[1754561823158,2.63012545,3802.1,3801.1,2.63081739]
[1754561823469,2.62985036,3802.5,3801.8,2.63027537]
[1754561823669,2.76105316,3802.5,3802.0,0.1312]
[1754561823872,0.1312,3802.5,3802.1,2.63006625]
[1754561824059,0.1312,3802.7,3802.0,2.63017615]
[1754561824262,0.1312,3802.7,3802.2,0.1312]
[1754561824572,9.30534597,3802.3,3799.1,1.5339]
[1754561824734,2.63100737,3800.9,3800.4,0.1312]
[1754561824935,0.1312,3800.9,3799.7,4.82]
[1754561825171,4.47332504,3800.8,3800.3,0.1312]
[1754561825474,7.44907909,3802.2,3799.9,4.82]
[1754561825676,2.6311635,3800.6,3800.0,4.82]
[1754561825838,2.3030904,3800.5,3798.8,0.001]
[1754561826175,2.63192525,3799.5,3799.3,0.132]
[1754561826335,0.1312,3799.9,3799.3,0.132]
[1754561826336,2.76285129,3799.9,3799.3,0.132]
[1754561826536,0.1312,3799.9,3799.3,0.132]
[1754561826759,2.63145312,3800.2,3799.3,2.63200854]
[1754561826958,0.1312,3800.5,3799.8,0.1312]
[1754561827161,1.8423,3800.3,3799.8,0.1312]
[1754561827557,2.63079651,3801.2,3799.3,2.63205938]
[1754561827558,1.8423,3801.1,3799.3,1.5339]
[1754561827762,2.63095582,3800.9,3800.4,0.1312]
[1754561827959,0.1312,3801.0,3800.4,0.1312]
[1754561828375,2.76208996,3801.0,3800.4,0.1312]
[1754561828551,0.16408608,3801.0,3800.4,0.1312]
[1754561828754,2.2702,3800.9,3800.4,0.1312]
[1754561828956,2.63095582,3800.9,3800.4,0.1312]
[1754561829161,2.63109427,3800.7,3799.7,4.819]
[1754561829361,0.1312,3800.4,3799.9,0.1312]
[1754561829555,2.63138338,3800.3,3799.9,0.1312]
[1754561829762,2.2702,3800.3,3799.9,0.1312]
[1754561830159,60.0,3807.1,3798.8,3.001]
[1754561830160,2.303093,3800.2,3798.8,0.001]
[1754561830585,2.2702,3800.1,3798.8,0.001]
[1754561830889,2.63186616,3799.6,3798.8,0.001]
[1754561831047,0.03289473,3800.0,3798.8,0.001]
[1754561831251,2.63192525,3799.5,3798.8,0.001]
[1754561831482,4.47417056,3799.6,3798.8,2.63339951]
[1754561831801,0.4279,3800.0,3798.9,0.01184569]
[1754561831967,1.8423,3800.2,3798.8,1.5349]
[1754561832278,2.6316482,3799.9,3798.8,0.001]
[1754561832481,0.03289646,3799.8,3798.8,0.001]
[1754561832807,2.63234094,3798.9,3798.8,0.001]
[1754561833085,14.5,3799.4,3798.8,0.001]
[1754561833285,14.9279,3799.4,3798.8,0.001]
[1754561833447,2.2702,3798.9,3798.8,0.001]
[1754561833643,1.8423,3799.4,3798.8,0.001]
[1754561834379,1.87519993,3799.4,3798.8,0.001]
[1754561834584,1.8423,3799.4,3799.0,2.63224875]
[1754561834884,1.8423,3799.4,3798.8,0.001]
[1754561835297,1.8423,3799.4,3798.8,2.63339759]
[1754561835451,1.8423,3799.4,3798.8,0.001]
[1754561835650,1.8423,3800.0,3798.8,0.001]
[1754561836090,2.63234094,3798.9,3798.8,0.001]
[1754561836298,2.63226625,3799.1,3798.8,0.001]
[1754561836600,2.63220638,3799.1,3798.8,0.001]
[1754561836755,4.90254094,3798.9,3798.8,0.001]
[1754561837781,2.6652452,3798.9,3798.8,0.001]
[1754561837982,2.63234094,3798.9,3798.8,0.001]
[1754561838184,2.6322057,3799.1,3798.8,0.001]
[1754561838368,4.90254094,3798.9,3798.8,0.001]
[1754561838568,2.63254883,3798.6,3798.5,0.001]
[1754561838774,2.63289539,3798.1,3797.6,0.001]
[1754561838989,2.66580658,3798.1,3797.6,0.001]
[1754561839165,4.93600658,3798.1,3797.6,0.001]
[1754561840299,5.06800658,3798.1,3797.6,0.001]
[1754561840667,5.03509539,3798.1,3797.6,0.001]
[1754561840866,5.06800658,3798.1,3797.6,0.001]
[1754561841271,9.85109539,3798.1,3797.6,0.001]
[1754561841913,7.2182,3798.1,3797.6,0.001]
[1754561842070,1.9743,3798.1,3797.6,0.001]
[1754561842270,1.9632,3798.8,3797.7,2.63316699]
[1754561842505,0.24315395,3798.7,3798.0,2.0159]
[1754561842665,0.24312336,3798.8,3798.0,1.5369]
[1754561842862,0.24312336,3798.8,3798.5,2.63260627]
[1754561843102,0.24312336,3798.8,3798.7,2.63247953]
[1754561843296,0.1312,3799.8,3799.1,2.63217806]
[1754561843517,0.1312,3799.8,3798.8,2.63235141]
[1754561843518,0.24312336,3799.7,3798.7,0.132]
[1754561843666,0.1312,3799.5,3799.0,2.63221904]
[1754561843867,0.24312336,3799.4,3799.3,0.132]
[1754561844471,0.24312336,3799.4,3799.0,0.132]
[1754561844690,0.24312336,3799.3,3799.2,2.63213308]
[1754561844866,0.24312336,3799.3,3798.6,6.3509]
[1754561845070,17.13022144,3802.0,3799.1,2.63220236]
[1754561845071,0.24312336,3799.2,3799.1,2.63220236]
[1754561845269,4.815,3800.7,3799.1,2.63220236]
[1754561845270,0.1312,3800.1,3799.4,2.63198216]
[1754561845521,0.1312,3800.1,3799.1,0.132]
[1754561845522,0.24348221,3800.0,3799.1,0.132]
[1754561845673,0.24348221,3800.0,3798.5,1.4736]
[1754561845674,2.63187266,3799.6,3799.4,0.1312]
[1754561845869,2.67528221,3799.5,3798.5,4.815]
[1754561846102,2.63222478,3799.1,3798.8,0.132]
[1754561846309,0.132,3799.3,3798.8,0.132]
[1754561846505,2.63234094,3798.9,3798.8,0.132]
[1754561846707,4.59535114,3799.2,3798.8,0.132]
[1754561846909,2.63227394,3799.0,3798.8,0.132]
[1754561847205,2.63227394,3799.0,3797.6,0.001]
[1754561847206,0.03290339,3799.0,3797.6,0.001]
[1754561847588,1.9632,3799.3,3798.0,1.4746]
[1754561847905,1.9632,3799.7,3798.1,3.0]
[1754561848108,5.3154956,3799.9,3798.1,3.0]
[1754561848109,0.4686,3799.9,3798.2,1.48545214]
[1754561848304,0.24403937,3799.8,3798.2,4.45340754]
[1754561848503,0.24403937,3799.7,3798.3,4.814]
[1754561848710,0.24403937,3799.6,3798.3,4.814]
[1754561848897,5.06346976,3799.9,3799.2,2.63212246]
[1754561849096,5.06349257,3799.9,3799.2,2.63213013]
[1754561849272,0.24420844,3799.8,3798.5,1.4663]
[1754561849472,2.6319571,3799.5,3798.7,2.63242738]
[1754561849680,2.4318,3799.9,3798.5,1.4663]
[1754561849873,2.87614484,3799.8,3799.0,2.63222384]
[1754561850073,0.24438085,3799.7,3798.9,2.63232785]
[1754561850302,2.87628859,3799.6,3798.9,2.63232785]
[1754561850487,0.24438085,3799.5,3799.0,2.63224361]
[1754561850687,0.24438085,3799.4,3798.9,2.63232059]
[1754561851010,0.24438085,3799.3,3799.1,2.63218196]
[1754561851229,0.24442107,3799.2,3799.1,2.63218196]
[1754561851510,2.63187278,3799.6,3798.9,2.63227872]
[1754561851715,0.24463665,3799.5,3798.9,2.6323252]
[1754561851873,2.4318,3799.9,3799.0,2.63226612]
[1754561851874,0.24463665,3799.4,3799.0,2.63226612]
[1754561852075,9.30534597,3799.1,3797.7,3.0]
[1754561852289,9.30534597,3799.1,3797.2,0.001]
[1754561852290,0.03290339,3799.0,3797.2,0.001]
[1754561852505,2.63289539,3798.1,3797.2,0.001]
[1754561852709,2.66580658,3798.1,3797.2,0.001]
[1754561853011,5.09760658,3798.1,3797.2,0.001]
[1754561854006,5.06469539,3798.1,3797.2,0.001]
[1754561854207,5.09760658,3798.1,3797.2,0.001]
[1754561854742,2.6331727,3797.7,3797.2,0.001]
[1754561854894,2.66608735,3797.7,3797.2,0.001]
[1754561855106,2.6331727,3797.7,3797.2,0.001]
[1754561855524,5.0649727,3797.7,3797.2,0.001]
[1754561855919,4.5963727,3797.7,3797.2,0.001]
[1754561856114,7.2418,3798.2,3797.2,0.001]
[1754561856441,2.6331727,3797.7,3797.2,0.001]
[1754561856658,5.31056695,3797.7,3797.2,0.001]
[1754561856857,0.24559425,3797.7,3797.2,0.001]
[1754561857008,0.24559425,3797.7,3797.6,2.76624204]
[1754561857205,0.24559425,3797.7,3797.6,1.5993]
[1754561857406,0.24559425,3797.7,3797.6,4.23254204]
[1754561857643,2.63197916,3799.5,3797.8,3.0]
[1754561857848,2.63200804,3799.4,3797.9,1.8133]
[1754561858052,0.4686,3799.6,3798.7,2.63244245]
[1754561858345,1.9632,3799.9,3798.1,1.4663]
[1754561858346,2.63171745,3799.8,3798.1,1.4663]
[1754561858505,2.63185598,3799.6,3798.3,2.63269093]
[1754561858708,2.63230053,3799.0,3798.2,2.6328109]
[1754561858945,2.63212866,3799.3,3798.5,2.63256221]
[1754561859131,0.4686,3800.1,3799.0,2.63227076]
[1754561859331,0.4686,3800.1,3799.0,2.63221707]
[1754561859532,0.50149387,3800.1,3798.7,2.63241475]
[1754561859748,2.63184017,3799.7,3798.9,2.63233047]
[1754561859946,0.50149387,3800.1,3798.6,2.63248833]
[1754561860254,2.63179469,3799.7,3799.0,2.63221736]
[1754561860448,2.63186441,3799.6,3798.9,2.63232664]
[1754561860758,0.4686,3800.1,3798.2,2.63276501]
[1754561860759,1.9632,3799.8,3798.2,2.63276501]
[1754561861058,2.63190357,3799.6,3798.6,2.63251865]
[1754561861259,2.63211158,3799.3,3798.6,2.63249872]
[1754561861461,0.03289646,3799.8,3798.3,4.44602912]
[1754561861761,2.63213308,3799.2,3797.8,3.0]
[1754561861965,1.9632,3799.8,3798.6,2.63251866]
[1754561862125,2.63212219,3799.3,3798.6,2.63251866]
[1754561862319,2.63185598,3799.6,3798.3,4.806]
[1754561862550,0.03289733,3799.7,3798.3,4.806]
[1754561862714,1.9632,3799.8,3798.3,4.806]
[1754561862715,2.63185598,3799.6,3798.4,1.4663]
[1754561863026,2.6318271,3799.7,3799.0,2.63220247]
[1754561863232,2.4318,3800.3,3798.8,1.8133]
[1754561863430,2.63164978,3799.9,3799.2,2.63206913]
[1754561863734,2.63144045,3800.2,3799.3,2.63205415]
[1754561863950,2.63144045,3800.2,3799.4,2.6319465]
[1754561863951,2.63147538,3800.2,3799.4,2.6319465]
[1754561864116,1.99608867,3800.7,3799.4,2.6319465]
[1754561864451,2.63123273,3800.5,3798.2,0.347]
[1754561864625,9.30534597,3801.0,3799.1,2.63218835]
[1754561864626,2.63170964,3799.9,3799.1,2.63218835]
[1754561864825,4.804,3800.5,3799.2,1.4663]
[1754561865060,0.002,3800.1,3799.5,2.63190255]
[1754561865214,0.002,3800.1,3799.1,0.347]
[1754561865417,2.63157894,3800.0,3799.3,2.63201171]
[1754561865616,2.63159174,3800.0,3799.3,2.63204425]
[1754561865817,0.002,3799.7,3799.0,4.804]
[1754561866016,0.002,3799.7,3799.3,2.63201732]
[1754561866248,0.002,3799.7,3799.1,2.63214312]
[1754561866453,2.43552572,3800.1,3799.4,2.63194289]
[1754561866762,2.43552572,3800.1,3799.0,4.804]
[1754561866763,2.63121305,3800.6,3799.8,2.63166883]
[1754561867260,2.63128588,3800.5,3799.8,2.63171669]
[1754561867425,2.63128588,3800.5,3799.9,2.63164773]
[1754561867759,0.1312,3800.6,3800.1,0.1312]
[1754561867926,2.63123981,3800.5,3800.1,0.1312]
[1754561868665,1.9632,3800.5,3800.1,0.1312]
[1754561868826,0.1312,3800.6,3800.1,0.1312]
[1754561869029,2.76241775,3800.6,3800.1,0.1312]
[1754561869228,2.63124249,3800.5,3800.1,0.1312]
[1754561869560,1.9632,3800.5,3800.1,0.1312]
[1754561869757,0.24570396,3800.4,3800.1,0.1312]
[1754561869960,0.24570396,3800.3,3800.1,0.1312]
[1754561870127,2.61290316,3800.2,3800.1,0.1312]
[1754561870328,0.002,3800.9,3800.2,2.63144045]
[1754561870523,0.002,3803.8,3800.2,2.63144045]
[1754561870524,1.9349,3802.5,3800.4,3.0]
[1754561870753,1.9349,3802.5,3801.7,2.63039764]
[1754561871029,1.9349,3802.5,3801.9,0.1312]
[1754561871030,2.62991794,3802.4,3801.9,0.1312]
[1754561871267,2.08716902,3802.5,3801.8,0.1312]
[1754561871676,2.08716902,3802.5,3801.8,2.76148184]
[1754561871677,2.0661,3802.5,3801.8,2.76148184]
[1754561871855,2.0661,3802.5,3801.8,0.1312]
[1754561872235,4.69596859,3802.5,3801.8,0.1312]
[1754561872435,2.0661,3802.5,3801.8,2.76150798]
[1754561872653,4.69595567,3802.5,3801.8,0.1312]
[1754561872856,2.0661,3802.5,3801.8,0.1312]
[1754561873030,4.69595769,3802.5,3801.8,0.1312]
[1754561873231,2.0661,3802.5,3801.8,0.1312]
[1754561873633,2.62963743,3802.9,3802.1,2.63011923]
[1754561873928,2.62963743,3802.9,3802.3,2.76116609]
[1754561873929,2.62957543,3802.9,3802.3,2.76116609]
[1754561874166,0.1332,3803.0,3802.3,0.1312]
[1754561874340,4.5645211,3802.9,3802.3,0.1312]
[1754561874937,2.6297906,3802.6,3802.3,0.1312]
[1754561875270,2.62964131,3802.8,3802.3,0.1312]
[1754561875631,2.3672,3802.7,3802.3,0.1312]
[1754561875832,2.62989923,3802.5,3802.1,0.1312]
[1754561876062,2.3672,3802.6,3801.0,4.09713892]
[1754561876063,2.3672,3802.6,3801.4,3.0]
[1754561876575,4.9969823,3802.6,3801.4,3.0]
[1754561876866,0.1312,3802.4,3801.9,0.1312]
[1754561877031,2.62989933,3802.5,3802.3,0.1312]
[1754561877234,0.1312,3802.8,3801.5,4.793]
[1754561877235,2.3672,3802.4,3801.5,4.793]
[1754561877474,2.62998711,3802.3,3801.9,0.1312]
[1754561877836,1.9349,3802.3,3801.9,0.1312]
[1754561878353,1.9349,3802.9,3801.6,1.4663]
[1754561878559,0.1332,3803.0,3802.2,0.1312]
[1754561878873,2.62996671,3802.4,3801.8,4.791]
[1754561879039,2.76106735,3802.5,3802.0,0.1312]
[1754561879439,4.69596735,3802.5,3802.0,0.1312]
[1754561879771,3.19308247,3802.9,3802.4,0.1312]
[1754561879976,2.62984878,3802.5,3802.4,0.1312]
[1754561880534,1.95596902,3802.5,3802.4,0.1312]
[1754561880738,2.63013942,3802.1,3801.5,4.79]
[1754561881049,2.63019463,3802.0,3801.9,0.1312]
[1754561881251,2.63007889,3802.2,3801.9,0.1312]
[1754561881465,2.62994542,3802.4,3801.9,0.1312]
[1754561881674,2.4984,3802.5,3801.9,0.1312]
[1754561881675,2.3672,3802.1,3801.9,0.1312]
[1754561881973,2.3672,3802.1,3800.2,0.19840474]
[1754561882137,2.62986001,3802.5,3800.3,6.5415]
[1754561882138,2.6302104,3802.0,3800.3,6.5415]
[1754561882342,1.95596902,3802.5,3801.0,2.63081923]
[1754561882343,2.63029154,3801.9,3801.0,2.63081923]
[1754561882587,1.9349,3802.5,3801.2,2.63074277]
[1754561882745,3.06211903,3802.6,3801.5,0.1312]
[1754561882746,0.1312,3802.1,3801.5,0.1312]
[1754561883073,2.63011048,3802.2,3801.2,0.1312]
[1754561883273,2.63016854,3802.1,3801.9,0.1312]
[1754561883437,1.9349,3802.3,3801.9,0.1312]
[1754561883854,1.9349,3802.2,3801.9,0.1312]
[1754561884186,0.1312,3802.4,3801.9,0.1312]
[1754561884384,1.9349,3802.7,3802.1,0.1312]
[1754561884548,2.62988374,3802.5,3802.3,0.1312]
[1754561884882,2.62980288,3802.6,3802.2,0.1312]
[1754561885061,2.62980288,3802.6,3801.7,2.63039487]
[1754561885062,2.62998558,3802.4,3801.7,2.63038108]
[1754561885261,4.99699128,3802.6,3801.6,4.786]
[1754561885262,0.1312,3802.5,3802.0,0.1312]
[1754561885465,2.62999721,3802.3,3802.0,0.1312]
[1754561885654,2.4984,3802.2,3801.6,0.1312]
[1754561886051,2.63035127,3801.8,3801.6,0.1312]
[1754561886281,2.63012545,3802.1,3801.2,7.41573871]
[1754561886551,0.1312,3801.8,3801.3,0.1312]
[1754561886754,0.1312,3801.5,3800.9,0.1312]
[1754561887053,0.55,3803.3,3800.2,9.1469026]
[1754561887054,0.1312,3800.9,3800.3,0.1312]
[1754561887289,2.63113672,3800.7,3800.3,0.1312]
[1754561887492,2.3672,3800.6,3799.9,4.784]
[1754561887693,0.1312,3800.7,3800.2,0.1312]
[1754561887871,0.1312,3801.1,3800.5,0.1312]
[1754561888077,2.6309729,3800.9,3800.5,0.1312]
[1754561888361,1.9349,3800.8,3800.5,0.1312]
[1754561888788,4.56596094,3800.8,3800.5,0.1312]
[1754561888988,2.63106094,3800.8,3800.5,0.1312]
[1754561889300,4.99829744,3800.7,3800.0,2.63155611]
[1754561889453,2.3672,3800.7,3800.4,0.1312]
[1754561890101,0.1312,3800.9,3800.5,2.63122103]
[1754561890291,2.6310319,3800.8,3799.9,2.6316482]
[1754561890481,4.5658683,3800.9,3800.5,0.1312]
[1754561890677,0.1312,3801.0,3800.5,0.1312]
[1754561890853,0.1312,3801.7,3800.8,0.1312]
[1754561891064,4.56713392,3802.0,3801.4,0.1312]
[1754561891295,2.0681,3802.0,3801.4,0.1312]
[1754561891484,2.63047667,3801.6,3801.4,0.1312]
[1754561891667,2.630333,3801.8,3800.6,3.0]
[1754561891863,2.761533,3801.8,3801.3,0.1312]
[1754561892053,2.6322055,3802.0,3801.3,0.1312]
[1754561892054,0.002,3802.0,3801.3,0.1312]
[1754561892253,0.002,3802.0,3801.7,0.1312]
[1754561892459,4.69829752,3802.0,3801.4,0.1312]
[1754561892659,2.63033725,3801.8,3801.4,0.1312]
[1754561892869,2.63026846,3801.9,3801.4,0.1312]
[1754561893093,1.9349,3801.7,3801.4,0.1312]
[1754561893260,4.99747543,3801.9,3801.4,0.1312]
[1754561893460,4.56525911,3801.8,3801.4,0.1312]
[1754561893660,4.56524416,3801.8,3801.4,0.1312]
[1754561893857,2.76339623,3802.0,3801.4,0.1312]
[1754561894167,4.69830871,3802.0,3801.4,0.1312]
[1754561894495,2.0681,3802.0,3801.6,2.63045944]
[1754561894665,2.0681,3802.0,3801.7,2.63034256]
[1754561894666,0.002,3802.0,3801.7,2.63034256]
[1754561894861,0.002,3802.0,3801.6,0.1312]
[1754561895194,0.4323,3801.9,3800.2,4.779]
[1754561895392,2.63033896,3801.8,3800.9,2.63090071]
[1754561895563,0.02106902,3801.8,3800.2,4.779]
[1754561895765,2.3672,3801.7,3800.2,6.1855]
[1754561895987,4.56534921,3801.7,3800.9,2.63089012]
[1754561896172,1.9349,3801.7,3800.3,1.4065]
[1754561896402,1.9349,3801.7,3801.1,2.63077138]
[1754561896915,1.9349,3801.7,3801.3,2.6306328]
[1754561897118,2.63027024,3801.9,3801.2,2.63072824]
[1754561897914,0.002,3802.0,3800.6,1.4065]
[1754561898095,1.9349,3801.8,3800.9,2.6309052]
[1754561898296,4.56523326,3801.8,3800.9,2.6309052]
[1754561898612,2.3672,3801.8,3801.1,2.63076521]
[1754561898819,1.9369,3802.0,3800.9,4.776]
[1754561899419,1.9369,3802.0,3801.2,2.63074511]
[1754561899595,4.56711559,3802.0,3800.9,4.776]
[1754561899800,2.63038522,3801.8,3801.1,2.63076655]
[1754561900092,2.63038522,3801.8,3801.1,2.63080022]
[1754561900093,2.63038008,3801.8,3801.1,2.63080022]
[1754561900305,2.63038008,3801.8,3801.1,2.63080089]
[1754561900510,2.63026381,3801.9,3801.2,2.63072915]
[1754561900714,2.63026381,3801.9,3801.3,2.63067832]
[1754561901119,2.63224051,3802.0,3801.4,2.6305989]
[1754561901284,2.63224051,3802.0,3801.1,2.63080019]
[1754561901285,0.002,3802.0,3801.7,2.63039958]
[1754561901616,0.002,3802.0,3801.6,4.774]
[1754561901816,0.002,3802.0,3801.8,2.63031028]
[1754561902115,0.002,3802.0,3801.8,2.63030681]
[1754561902620,0.002,3802.0,3801.9,2.63026381]
[1754561902825,0.002,3802.0,3801.9,4.03676381]
[1754561903812,0.002,3802.0,3801.9,2.63026381]
[1754561904031,0.002,3802.0,3801.6,4.774]
[1754561904698,0.002,3802.0,3801.9,2.63026381]
[1754561905094,0.002,3802.0,3801.9,2.76146381]
[1754561905300,0.002,3802.0,3801.9,4.9022]
[1754561905600,0.002,3802.0,3801.9,7.53246381]
[1754561905928,0.002,3802.0,3801.9,4.9022]
[1754561906100,0.002,3802.0,3801.9,0.1312]
[1754561906301,0.002,3802.0,3801.9,4.9012]
[1754561906696,4.88459463,3802.0,3801.9,0.1312]
[1754561906998,2.63026471,3801.9,3801.8,0.1312]
[1754561907427,0.002,3802.0,3801.8,0.1312]
[1754561907629,0.4563,3802.0,3801.8,0.1312]
[1754561907856,1.7981,3801.9,3801.8,0.1312]
[1754561908018,0.002,3802.0,3801.8,0.1312]
[1754561908646,0.002,3802.0,3801.9,2.63026381]
[1754561909033,0.002,3802.0,3801.8,0.1312]
[1754561909234,0.002,3802.0,3801.9,2.63026381]
[1754561909432,0.002,3802.0,3801.8,2.76150815]
[1754561909870,0.002,3802.0,3801.8,0.1312]
[1754561910167,0.002,3802.0,3801.9,4.767]
[1754561910350,0.002,3802.0,3801.9,7.39726381]
[1754561910967,0.002,3802.0,3801.9,12.08306381]
[1754561911146,0.002,3802.0,3801.9,12.21426381]
[1754561911926,0.002,3802.0,3801.9,11.86426381]
[1754561912153,0.002,3802.0,3801.9,5.76146381]
[1754561912339,0.002,3802.0,3801.9,10.52546381]
[1754561912740,0.002,3802.0,3801.9,10.52446381]
[1754561913259,0.002,3802.0,3801.9,5.76146381]
[1754561913476,0.002,3802.0,3801.9,10.52446381]
[1754561913638,0.002,3802.0,3801.9,11.86326381]
[1754561913845,0.002,3802.0,3801.9,11.86226381]
[1754561914053,0.002,3802.0,3801.9,12.20926381]
[1754561914882,0.002,3802.0,3801.9,10.52246381]
[1754561915084,0.002,3802.0,3801.9,12.20826381]
[1754561915307,0.002,3802.0,3801.9,10.52246381]
[1754561916072,0.002,3802.0,3801.9,5.76146381]
[1754561916385,0.002,3802.0,3801.9,10.52146381]
[1754561916782,0.002,3802.0,3801.9,5.76146381]
[1754561917006,2.2544,3802.0,3801.9,4.8902]
[1754561917371,2.2544,3802.0,3801.9,0.1312]
[1754561917575,2.2544,3802.0,3801.9,7.51946381]
[1754561917807,2.2544,3802.0,3801.9,0.1312]
[1754561918106,2.2544,3802.0,3801.9,4.8882]
[1754561918270,2.2544,3802.0,3801.9,0.1312]
[1754561918772,2.2544,3802.0,3801.9,4.8882]
[1754561920526,0.002,3802.0,3801.9,4.8882]
[1754561920744,1.8001,3802.0,3801.9,4.8882]
[1754561922641,2.2544,3802.0,3801.9,4.8882]
[1754561922926,2.2544,3802.0,3800.5,0.001]
[1754561923146,2.630333,3801.8,3801.5,0.1312]
[1754561923312,2.2524,3801.9,3801.5,4.8832]
[1754561923494,0.002,3802.0,3801.5,4.8832]
[1754561923495,2.2524,3801.8,3801.5,4.8832]
[1754561923694,2.2524,3801.7,3801.5,4.8832]
[1754561923933,2.2524,3801.6,3801.5,4.8832]
[1754561925006,0.002,3802.0,3801.5,4.8832]
[1754561925207,2.2524,3801.9,3801.5,4.8832]
[1754561925510,2.2524,3801.8,3801.5,4.8832]